Cogmind - Beta 13 @@@ ROGUE MODE // 2024.04.25 @ 20:13:40 Player: GregoriusTechneticies Result: Destroyed by G-47 Trooper with Particle Gun Performance ------------- Evolutions (2) 1000 Regions Visited (4) 800 Robots Destroyed (50) 250 Value Destroyed (773) 773 Prototype IDs (2) 40 Alien Tech Used (0) 0 Bonus (28) 28 TOTAL SCORE: 2891 Bonus ------- Follower Combat Kills 28 Cogmind --------- Core Integrity 0/550 Matter 284/300 Energy 98/100 System Corruption 0% Temperature Cool (9) Movement Core (250) Ox4 Location -8/Materials Parts ------- > --- POWER (1) -------- (None) > --- PROPULSION (2) --- (None) > --- UTILITY (6) ------ Medium Storage Unit Signal Interpreter Melee Analysis Suite Melee Analysis Suite > --- WEAPON (2) ------- Heavy Assault Rifle Scythe > --- INVENTORY (10) --- Medium Battery (150) High-capacity Matter Pod (200) Weight Redist. System Experimental Sensor Array Signal Interpreter Datajack Peak State ------------ > --- POWER ------------ Light Ion Engine > --- PROPULSION ------- Wheel Wheel > --- UTILITY ---------- Medium Storage Unit Experimental Sensor Array > --- WEAPON ----------- Heavy Assault Rifle Heavy Assault Rifle > --- INVENTORY -------- Medium Battery High-capacity Matter Pod Weight Redist. System Sensor Array Signal Interpreter Signal Interpreter Seismic Detector Hacking Suite Heavy Assault Rifle Datajack [Rating: 18] Favorites ----------- Power Light Ion Engine Engine Light Ion Engine Propulsion Wheel Treads Light Treads Leg Aluminum Leg Wheel Wheel Flight Unit Flight Unit Utility Medium Storage Unit Device Seismic Detector Storage Medium Storage Unit Processor Signal Interpreter Hackware Hacking Suite Weapon Heavy Assault Rifle Ballistic Gun Heavy Assault Rifle Slashing Weapon Scythe Special Melee Weapon Datajack Build | -11 -10 -10 -10 -8 ------- Run | Yrd Mat Min Sub Mat Slots Evolved 4 | . . . . 4 Power . | . . . . . Propulsion . | . . . . . Utility 4 | . . . . 4 Weapon . | . . . . . Parts Attached 44 | 9 15 8 1 11 Power 3 | 1 2 . . . Engine 3 | 1 2 . . . Core . | . . . . . Reactor . | . . . . . Propulsion 14 | 4 8 2 . . Treads 1 | . 1 . . . Leg 1 | . 1 . . . Wheel 11 | 4 5 2 . . Hover . | . . . . . Flight 1 | . 1 . . . Utility 14 | 2 1 4 . 7 Device 6 | 1 . 3 . 2 Storage 2 | 1 1 . . . Processor 5 | . . 1 . 4 Hackware 1 | . . . . 1 Protection . | . . . . . Artifact . | . . . . . Weapon 13 | 2 4 2 1 4 Energy Gun . | . . . . . Energy Cannon . | . . . . . Ballistic Gun 11 | 2 4 1 1 3 Ballistic Cannon . | . . . . . Launcher . | . . . . . Special Weapon . | . . . . . Impact Weapon . | . . . . . Slashing Weapon 1 | . . . . 1 Piercing Weapon . | . . . . . Special Melee Weapon 1 | . . 1 . . Unidentified Prototypes 2 | . . 1 . 1 Parts Lost 11 | . . . . 11 Power 1 | . . . . 1 Propulsion 2 | . . . . 2 Utility 5 | . . . . 5 Weapon 3 | . . . . 3 Highest Loss Streak 11 | . . . . 11 To Critical Strikes . | . . . . . Average Slot Usage (%) 96 | . 99 100 100 64 Engine 13 | . 14 14 14 5 Wheel 25 | . 27 28 28 7 Device 11 | . 14 13 . 7 Storage 13 | . 14 14 14 9 Processor 3 | . . . 14 16 Ballistic Gun 26 | . 28 27 28 9 Naked Turns . | . . . . . Heaviest Build 21 | 13 20 20 19 21 Greatest Support 20 | 20 20 20 20 20 Greatest Overweight (x) 5 | 3 4 . . 5 Average Overweight (x) . | . . . . 1 Largest Inventory Capacity 10 | 8 10 10 10 10 Average Capacity 9 | 7 8 10 10 10 Most Carried 10 | 8 10 10 10 9 Average Carried 8 | 3 8 10 9 7 Final Capacity 10 | 8 10 10 10 10 Final Carried 10 | 8 10 10 10 6 Class Distribution -------------------- 51% | Mutant 48% | Scavenger-Mutant Dominant Class ---------------- Scavenger-Mutant | -10/Materials Scavenger-Mutant | -10/Mines Scavenger-Mutant | -10/Subcaves Scavenger-Mutant | -8/Materials Resources | -11 -10 -10 -10 -8 ----------- Run | Yrd Mat Min Sub Mat Matter Collected 1713 | 552 710 146 109 196 Remotely . | . . . . . Salvage Created 1639 | 343 681 257 68 290 Parts 111 | 32 45 16 4 14 Haulers Intercepted 2 | . 1 . . 1 Recyclers Shooed 3 | . 1 2 . . Parts Field Recycled . | . . . . . Retrieved Matter . | . . . . . Parts Self-Destructed 11 | . . . 11 . Prevented . | . . . . . Kills | -11 -10 -10 -10 -8 ------- Run | Yrd Mat Min Sub Mat Combat Hostiles Destroyed 17 | . 8 4 2 3 Melee 3 | . . . . 3 Guns 14 | . 8 4 2 . Classes Destroyed 12 | 3 7 . 1 1 Worker 13 | 4 7 2 . . Builder 1 | . 1 . . . Tunneler 11 | 9 1 1 . . Hauler 2 | . 1 . . 1 Recycler 3 | 1 1 . . 1 Mechanic 1 | . 1 . . . Operator 1 | . 1 . . . Watcher 1 | . 1 . . . Swarmer 3 | . 2 . 1 . Grunt 12 | . 6 4 . 2 Sentry 1 | . . . . 1 Subdweller 1 | . . . 1 . Best Kill Streak 11 | 4 11 6 2 3 Combat Bots Only 5 | . 5 4 2 3 Max Kills in Single Turn 2 | 1 2 1 1 1 Gunslinging . | . . . . . Exploded . | . . . . . Melee 1 | . . . . 1 Uniques/NPCs Destroyed . | . . . . . Combat | -11 -10 -10 -10 -8 -------- Run | Yrd Mat Min Sub Mat Hostile Shots Fired 156 | . 46 11 10 89 Missed 51 | . 17 4 8 22 Damage Taken 1577 | . 310 73 78 1116 Core 629 | . 45 10 9 565 Absorbed by Shields . | . . . . . Core Remaining (%) 87 | 100 . . 74 . Volleys Fired 143 | 31 54 19 14 25 Largest 2 | 2 2 2 2 2 Hottest 48 | 40 46 46 46 48 Shots Fired 265 | 62 108 38 28 29 Gun 265 | 62 108 38 28 29 Cannon . | . . . . . Launcher . | . . . . . Special . | . . . . . Kinetic 265 | 62 108 38 28 29 Thermal . | . . . . . Explosive . | . . . . . Electromagnetic . | . . . . . Robot Hit Streak 10 | 7 10 7 4 5 Robot Miss Streak 5 | 2 5 3 4 2 Penetration Max . | . . . . . Secondary Targets 3 | . 2 1 . . Max Gunslinging Chain 1 | . 1 1 . . Shots Hit Robots 157 | 36 64 26 8 23 Core Hits 66 | 15 29 12 3 7 Critical Kills . | . . . . . Critical Parts Destroyed 2 | . 1 1 . . Critical Strikes 2 | . 1 1 . . Destroy 2 | . 1 1 . . Melee Attacks 5 | . . . . 5 Impact . | . . . . . Slashing 5 | . . . . 5 Piercing . | . . . . . Sneak Attacks . | . . . . . Combat Hostiles . | . . . . . Follow-up Attacks . | . . . . . Damage Inflicted 2354 | 458 956 379 107 454 Guns 2225 | 458 956 379 107 325 Cannons . | . . . . . Explosions . | . . . . . Melee 129 | . . . . 129 Ramming . | . . . . . Kinetic 2225 | 458 956 379 107 325 Thermal . | . . . . . Explosive . | . . . . . Electromagnetic . | . . . . . Impact . | . . . . . Slashing 129 | . . . . 129 Piercing . | . . . . . Highest Corruption . | . . . . . Average Corruption . | . . . . . Corruption Purged . | . . . . . Corruption Blocked . | . . . . . Overload Shots . | . . . . . Overflow Damage . | . . . . . Projectiles . | . . . . . Explosions . | . . . . . Melee . | . . . . . Knockbacks . | . . . . . Impact . | . . . . . Kinetic . | . . . . . Secondary . | . . . . . Self-Inflicted Damage . | . . . . . Shots . | . . . . . Rammed . | . . . . . Targets Rammed . | . . . . . Kicked . | . . . . . Crushed . | . . . . . Highest Temperature 12 | . 5 1 . 12 Average Temperature 2 | . 2 1 . 6 Received Heat Transfer 825 | . 126 42 9 648 Siege Activations . | . . . . . Robots Corrupted . | . . . . . Combat Hostiles . | . . . . . Parts Fried . | . . . . . Impact Corruptions . | . . . . . Robots Melted . | . . . . . Combat Hostiles . | . . . . . Parts Melted . | . . . . . Heat Transferred . | . . . . . Parts Sabotaged . | . . . . . Parts Stolen . | . . . . . Parts Stripped . | . . . . . Power Chain Reactions . | . . . . . Alert | -11 -10 -10 -10 -8 ------- Run | Yrd Mat Min Sub Mat Peak Influence 353 | 70 353 174 . 77 Initial 59 | . 45 59 . 23 Average 107 | 33 193 97 . 27 Maximum Alert Level 1 | . 1 . . . Low Security (%) 88 | 100 63 100 . 100 Level 1 11 | . 36 . . . Level 2 . | . . . . . Level 3 . | . . . . . Level 4 . | . . . . . Level 5 . | . . . . . High Security . | . . . . . Max Security . | . . . . . Squads Dispatched 2 | . 1 . . 1 Investigation . | . . . . . Extermination . | . . . . . Reinforcement 2 | . 1 . . 1 Assault . | . . . . . Garrison . | . . . . . Intercept . | . . . . . Searches Triggered . | . . . . . Construction Impeded . | . . . . . Haulers Reinforced . | . . . . . Active Scanning Responses . | . . . . . Cargo Convoy Interrupts . | . . . . . Stealth | -11 -10 -10 -10 -8 --------- Run | Yrd Mat Min Sub Mat Distress Signals 5 | . 3 . . 2 Communications Jammed . | . . . . . Distress Signals . | . . . . . Times Spotted 31 | . 15 4 4 8 Peak Tracking Total 8 | . 8 4 2 6 Tactical Retreats 2 | . . . . 2 Traps | -11 -10 -10 -10 -8 ------- Run | Yrd Mat Min Sub Mat Traps Triggered 3 | . . . 1 2 Indirectly . | . . . . . Trap Hack Attempts . | . . . . . Triggered . | . . . . . Disarmed . | . . . . . Reprogrammed . | . . . . . Reused . | . . . . . Traps Extracted . | . . . . . Installed . | . . . . . Triggered . | . . . . . Machines | -11 -10 -10 -10 -8 ---------- Run | Yrd Mat Min Sub Mat Machines Disabled 1 | . 1 . . . Max in Single Turn 1 | . 1 . . . Machines Repaired . | . . . . . Machines Dismantled . | . . . . . Machines Sabotaged . | . . . . . Overloaded Fab Kills . | . . . . . Hacking | -11 -10 -10 -10 -8 --------- Run | Yrd Mat Min Sub Mat Machines Accessed 3 | . 3 . . . Terminals 3 | . 3 . . . Fabricators . | . . . . . Repair Stations . | . . . . . Recycling Units . | . . . . . Scanalyzers . | . . . . . Garrison Access . | . . . . . Total Hacks 10 | . 10 . . . Successful 4 | . 4 . . . Failed 6 | . 6 . . . Catastrophic . | . . . . . Database Lockouts . | . . . . . Manual 10 | . 10 . . . Terminals 10 | . 10 . . . Fabricators . | . . . . . Repair Stations . | . . . . . Recycling Units . | . . . . . Scanalyzers . | . . . . . Garrison Access . | . . . . . Terminal Hacks 2 | . 2 . . . Level Access Points 1 | . 1 . . . Terminal Index 1 | . 1 . . . Fabricator Hacks . | . . . . . Repair Station Hacks . | . . . . . Recycling Unit Hacks . | . . . . . Scanalyzer . | . . . . . Garrison Access Hacks . | . . . . . Unauthorized Hacks 2 | . 2 . . . Terminals 2 | . 2 . . . Botnet 2 | . 2 . . . Fabricators . | . . . . . Repair Stations . | . . . . . Recycling Units . | . . . . . Scanalyzers . | . . . . . Garrison Access . | . . . . . Data Cores Recovered . | . . . . . Used . | . . . . . Hacking Detections 3 | . 3 . . . Full Trace Events . | . . . . . Feedback Events . | . . . . . Feedback Blocked . | . . . . . Robot Schematics Acquired . | . . . . . Robots Built . | . . . . . Authchips . | . . . . . Time . | . . . . . Total Robot Build Rating . | . . . . . Part Schematics Acquired . | . . . . . Parts Built . | . . . . . Authchips . | . . . . . Time . | . . . . . Total Part Build Rating . | . . . . . Parts Repaired . | . . . . . Time . | . . . . . Parts Recycled . | . . . . . Recycled Matter . | . . . . . Retrieved Matter . | . . . . . Retrieved Components . | . . . . . Parts Scanalyzed . | . . . . . Part Schematics Acquired . | . . . . . Parts Damaged . | . . . . . Bothacking | -11 -10 -10 -10 -8 ------------ Run | Yrd Mat Min Sub Mat Used RIF Installer . | . . . . . Robots Hacked . | . . . . . Non-combat . | . . . . . Combat . | . . . . . Robot Hacks Applied . | . . . . . Relay Couplers Released . | . . . . . Fabnet Peak Effective % . | . . . . . Robots Rewired . | . . . . . Allies Hacked . | . . . . . Hacks Repelled . | . . . . . Allies | -11 -10 -10 -10 -8 -------- Run | Yrd Mat Min Sub Mat Total Allies 4 | . . 4 . . Largest Group 4 | . . 4 4 3 Highest-Rated Group 71 | . . 71 71 40 Highest-Rated Ally 31 | . . 31 31 16 Total Orders . | . . . . . Ally Attacks 28 | . . . 17 11 Total Damage 301 | . . . 206 95 Kills 4 | . . . 1 3 Allies Corrupted . | . . . . . Allies Melted . | . . . . . Intel | -11 -10 -10 -10 -8 ------- Run | Yrd Mat Min Sub Mat Robot Analysis Total . | . . . . . Derelict Logs Recovered 2 | . . 1 1 . Drone Launches . | . . . . . Drone Recoveries . | . . . . . Exploration | -11 -10 -10 -10 -8 ------------- Run | Yrd Mat Min Sub Mat Turns Passed 1877 | 329 502 668 223 155 Spaces Moved 1520 | 247 338 681 196 58 Core 37 | 16 4 . . 17 Treads 2 | . 2 . . . Legs . | . . . . . Wheels 1480 | 231 331 681 196 41 Hover . | . . . . . Flight 1 | . 1 . . . Fastest Speed 50 | 50 80 80 80 80 Average Speed 83 | 86 84 80 80 127 Slowest Speed 300 | 200 285 80 80 300 Overloaded Moves . | . . . . . Propulsion Burnouts . | . . . . . Robots Hopped . | . . . . . Cave-ins Triggered . | . . . . . Exploration Rate (%) 34 | 7 43 94 18 9 Regions Visited 4 Branch Regions 2 Pre-discovered Areas 1 | . . . 1 . Known Exits Taken 2 | . . 1 1 . Unknown Exits Taken 2 | 1 1 . . . Scrap Searched 2 | . . 1 1 . Spaces Dug . | . . . . . Terrain Destroyed . | . . . . . Melee . | . . . . . Projectile . | . . . . . AOE . | . . . . . Terrain Rammed . | . . . . . Walls Destroyed . | . . . . . Machines Disabled . | . . . . . Actions | -11 -10 -10 -10 -8 --------- Run | Yrd Mat Min Sub Mat Total 1860 | 302 459 765 232 102 Wait 85 | . 12 53 20 . Move 1516 | 246 337 680 195 58 Hop . | . . . . . Pick Up 30 | 11 15 1 1 2 Fast Attach 19 | 7 6 1 . 5 Attach 5 | . . . . 5 Detach . | . . . . . Swap 20 | 2 9 7 1 1 Drop 37 | 5 26 4 1 1 Fire 143 | 31 54 19 14 25 Melee 5 | . . . . 5 Ram . | . . . . . Kick . | . . . . . Crush . | . . . . . Escape Stasis . | . . . . . Rewire . | . . . . . Trap . | . . . . . Miscellaneous . | . . . . . Route ------- -11/Scrapyard -10/Materials (discovered 4 exits: *Mat x3 / [*Min]) -10/Mines (discovered 3 exits: *Mat x2 / *Sub) -10/Subcaves -8/Materials History --------- Turn | Location | Event 9 | -11/Scrapyard | Discovered new exit (range 16) 330 | -11/Scrapyard | Entered Materials 376 | -10/Materials | Build established: Mutant 665 | -10/Materials | Identified exit to Materials 790 | -10/Materials | Discovered new exit (range 14) 832 | -10/Materials | Entered Mines 878 | -10/Mines | Build established: Scavenger-Mutant 895 | -10/Mines | Met a Derelict bent on vengeance 934 | -10/Mines | Discovered exit to Materials (range 6) 1163 | -10/Mines | Assisted by bots powering up and referring to "LRC-V3" 1204 | -10/Mines | Build established: Mutant 1216 | -10/Mines | Learned Materials garrison access intel 1259 | -10/Mines | Found a damaged Exp. Sensor Array with a note attached 1261 | -10/Mines | Found Prototype Device 1261 | -10/Mines | Identified Exp. Sensor Array 1339 | -10/Mines | Received a Mining Laser from a helpful Derelict 1421 | -10/Mines | Discovered exit to Materials (range 16) 1472 | -10/Mines | Discovered new exit (range 13) 1482 | -10/Mines | Identified exit to Subcaves 1500 | -10/Mines | Entered Subcaves 1500 | -10/Subcaves | Accompanied by 4 allies 1508 | -10/Subcaves | Learned location of Zion (-7) 1540 | -10/Subcaves | Build established: Scavenger-Mutant 1700 | -10/Subcaves | Discovered new exit (range 13) 1707 | -10/Subcaves | Identified exit to Materials 1723 | -10/Subcaves | Entered Materials 1723 | -8/Materials | Accompanied by 3 allies 1723 | -8/Materials | Evolved 4 slots: Utility x4 1724 | -8/Materials | Loaded intel: 1 garrison access location 1826 | -8/Materials | Lost 3 allies 1839 | -8/Materials | Core integrity fell below 50% 1860 | -8/Materials | Core integrity fell below 20% 1878 | -8/Materials | Destroyed by G-47 Trooper with Particle Gun Last Messages --------------- 01833_ K-01 Serf collects debris. 01835_ Melee Analysis Suite destroyed. 01837_ Acquired Melee Analysis Suite. 01840_ K-01 Serf collects debris. 01840_ G-47 Trooper destroyed. 01845_ Acquired Melee Analysis Suite. 01845_ U-05 Engineer builds a Door. 01846_ Acquired 20 matter. 01846_ Hacking Suite destroyed. 01846_ Critical hit (Burn: +37). 01846_ K-01 Serf collects debris. 01853_ U-05 Engineer builds a Door. 01856_ G-47 Trooper destroyed. 01862_ Critical hit (Burn: +37). 01862_ Melee Analysis Suite destroyed. 01867_ Y-45 Defender destroyed. 01869_ W-25 Informer sends out distress signal. 01869_ K-01 Serf collects debris. 01874_ Acquired Hvy. Assault Rifle. 01876_ K-01 Serf collects debris. Map ----- +----------------------------------------------------+ | ????????????# #????????????????????????????????? | | ????????????# #????????????????????????????????? | | ????????????# #????????????????????????????????? | | ????????????# #????????????????????????????????? | | ????????????# #????????????????????????????????? | | ????????????# #????????????????????????????????? | | ????????????# #????????????????????????????????? | | ????????????# ##########???????????????????????? | | ????????????# # #???????????????????????? | | ????????????# # ! #???????????????????????? | | ????????##### # #???????????????????????? | | ????????# # [ #???????????????????????? | | ????????# + ! +???????????????????????? | | ????????# # = #???????????????????????? | | ????????##### # = #???????????????????????? | | ????????????# # ! #???????????????????????? | | ????????????# # #???????????????????????? | | ????????????# ####+##+##???????????????????????? | | ????????????# #??# ## #???????#????????????????? | | ????????????/ #??# ## #?????? #????????????????? | | ??????????? # #??# ## ##???? #????????????????? | | ??????????? # #??# ##%##??? #????????????????? | | ?????????? ?# #??# ## ##### u#????????????????? | | ??????????#?# #??# # =#????????????????? | | ????????????# #??# #= [= #????????????????? | | ????????????# ####!# @%""" #????????????????? | | ????????????# =%#[ !*R" #????????????????? | | ???????? ###=! """u + ""?????????????? | | ????????? ?##=%^ ^ # "??????????????? | | ?????????? ??##|* g #????????????????? | | ?????????? ???## ^= *! #????????????????? | | ?????????? ?????# ! *! #????????????????? | | ??????????? ??????#w!% * #????????????????? | | ???????????###?? = ?????????? | | ???????????????## #######??????????? | | ????????????????# ###k###+####+#????????????????? | | ????????????????# ??? ??? ???? ???????????????? | | ????????????????#???# ??? ?????#??????????????? | | ????????????????????# ??? ???????????????????? | | ????????????????????# ???? ??????????????????? | | ????????????????????# ???? ?????????????????? | | ????????????????????# ?????? ????????????????? | | ????????????????????###????????#?????????????????? | | ?????????????????????????????????????????????????? | | ?????????????????????????????????????????????????? | | ?????????????????????????????????????????????????? | | ?????????????????????????????????????????????????? | | ?????????????????????????????????????????????????? | | ?????????????????????????????????????????????????? | | ?????????????????????????????????????????????????? | +----------------------------------------------------+ Best States ------------- Heat Dissipation 31 Energy Generation 10 Energy Capacity 125 Matter Stores 300 Matter Capacity 300 Sight Range 16 Robot Scan Range 14 Terrain Scan Density 10 Evasion (%) 44 Melee Accuracy 15 Recoil Reduction 1 Offensive Hacking 10 Item Schematics ----------------- None Robot Schematics ------------------ None Fabricated ------------ Nothing Alien Tech Used ----------------- None Achievements -------------- None Challenges ------------ None Game ------ Seed MultitargetingMachineShotgun Manual? 0 Play Time 00:30:10 Cumulative 52.9 hours Start 2024.04.25 @ 04:23:45 End 2024.04.25 @ 20:13:40 Sessions 5 Manual Loads 0 Difficulty Rogue Special Mode None Game No. 73 Rogue 58 Adventurer 0 Explorer 15 Win Type - Total 0 Types 0/0/0/0/0/0/0/0/0 Lore% 31 Gallery% 39 Achievement% 28 Wizard Run 0 Options --------- Layout 1 ASCII 0 Keyboard 0 Movement Mouse Keybinds 0 Fullscreen 1 Font 24/Smallcaps Map View 50x35 Zoom Use 0% Tactical HUD 1 Map Filters NONE Filters NONE Steam 1 RUN: bf33d9fa-aa3a-4412-949d-1e1cd4854b04